[Event "Titled Tuesday Blitz April 26 Late 2022"]
[White "Kujawski, Adam"]
[Black "Toniutti, Ezio"]
[WhiteFideId "1100920"]
[BlackFideId "113034"]
[WhiteElo "2053"]
[BlackElo "2215"]
[Result "0-1"]
[Round "08"]
[TimeControl "180+1"]
[Date "2022.04.26"]
[WhiteClock "0:00:02"]
[BlackClock "0:01:44"]

1. d4 {[%clk 0:03:00]}  d5 {[%clk 0:02:57]} 2. Nf3 {[%clk 0:03:00]}  c6 {[%clk 0:02:58]} 3. b3 {[%clk 0:02:53]}  Nf6 {[%clk 0:02:58]} 4. g3 {[%clk 0:02:50]}  Bf5 {[%clk 0:02:58]} 5. Bg2 {[%clk 0:02:49]}  e6 {[%clk 0:02:58]} 6. O-O {[%clk 0:02:46]}  Nbd7 {[%clk 0:02:58]} 7. c4 {[%clk 0:02:43]}  Be7 {[%clk 0:02:58]} 8. Nbd2 {[%clk 0:02:37]}  h6 {[%clk 0:02:57]} 9. Bb2 {[%clk 0:02:37]}  O-O {[%clk 0:02:57]} 10. a3 {[%clk 0:02:36]}  a5 {[%clk 0:02:56]} 11. Ra2 {[%clk 0:02:21]}  Qb6 {[%clk 0:02:54]} 12. Qa1 {[%clk 0:02:19]}  Rfd8 {[%clk 0:02:54]} 13. Rc1 {[%clk 0:02:00]}  Qa6 {[%clk 0:02:46]} 14. Bc3 {[%clk 0:01:45]}  Ne4 {[%clk 0:02:36]} 15. Nxe4 {[%clk 0:01:44]}  Bxe4 {[%clk 0:02:34]} 16. Nd2 {[%clk 0:01:24]}  Bxg2 {[%clk 0:02:32]} 17. Kxg2 {[%clk 0:01:25]}  Bg5 {[%clk 0:02:32]} 18. e3 {[%clk 0:01:20]}  Bf6 {[%clk 0:02:28]} 19. Nf3 {[%clk 0:00:42]}  a4 {[%clk 0:02:17]} 20. bxa4 {[%clk 0:00:26]}  dxc4 {[%clk 0:02:13]} 21. a5 {[%clk 0:00:24]}  b5 {[%clk 0:02:04]} 22. axb6 {[%clk 0:00:21]}  Nxb6 {[%clk 0:02:04]} 23. Bb4 {[%clk 0:00:17]}  Nd5 {[%clk 0:02:02]} 24. Qb1 {[%clk 0:00:14]}  Rdb8 {[%clk 0:02:00]} 25. Rac2 {[%clk 0:00:13]}  c3 {[%clk 0:01:51]} 26. Qb3 {[%clk 0:00:12]}  Be7 {[%clk 0:01:49]} 27. Ne5 {[%clk 0:00:10]}  Bxb4 {[%clk 0:01:48]} 28. axb4 {[%clk 0:00:09]}  Rxb4 {[%clk 0:01:49]} 29. Rxc3 {[%clk 0:00:03]}  Rxb3 {[%clk 0:01:47]} 30. Rxb3 {[%clk 0:00:04]}  Qe2 {[%clk 0:01:44]} 31. Rxc6 {[%clk 0:00:02]}  Ra2 {[%clk 0:01:44]} 0-1


[Site "https://www.chess.com"]

[Event "Titled Tuesday Blitz April 26 Late 2022"]
[White "Kukula, Pawel"]
[Black "Stanisz, Patryk"]
[WhiteFideId "1115081"]
[BlackFideId "1123106"]
[WhiteElo "2152"]
[BlackElo "1833"]
[Result "1-0"]
[Round "08"]
[TimeControl "180+1"]
[Date "2022.04.26"]
[WhiteClock "0:00:16"]
[BlackClock "0:00:02"]

1. d4 {[%clk 0:02:59]}  d5 {[%clk 0:02:59]} 2. c4 {[%clk 0:02:58]}  c6 {[%clk 0:02:58]} 3. Nf3 {[%clk 0:02:57]}  Nf6 {[%clk 0:02:59]} 4. Nbd2 {[%clk 0:02:49]}  g6 {[%clk 0:02:56]} 5. g3 {[%clk 0:02:49]}  Bg7 {[%clk 0:02:56]} 6. Bg2 {[%clk 0:02:49]}  O-O {[%clk 0:02:56]} 7. O-O {[%clk 0:02:50]}  Bf5 {[%clk 0:02:53]} 8. Qb3 {[%clk 0:02:41]}  Qb6 {[%clk 0:02:51]} 9. c5 {[%clk 0:02:41]}  Qxb3 {[%clk 0:02:51]} 10. axb3 {[%clk 0:02:42]}  Na6 {[%clk 0:02:49]} 11. Ra4 {[%clk 0:02:30]}  Ne4 {[%clk 0:02:41]} 12. e3 {[%clk 0:02:22]}  Nc7 {[%clk 0:02:31]} 13. b4 {[%clk 0:02:14]}  a6 {[%clk 0:02:27]} 14. Nh4 {[%clk 0:01:54]}  Nxd2 {[%clk 0:02:25]} 15. Bxd2 {[%clk 0:01:55]}  Bc2 {[%clk 0:02:17]} 16. Raa1 {[%clk 0:01:50]}  e5 {[%clk 0:02:17]} 17. Bc3 {[%clk 0:01:49]}  exd4 {[%clk 0:02:05]} 18. exd4 {[%clk 0:01:44]}  Nb5 {[%clk 0:01:59]} 19. Nf3 {[%clk 0:01:43]}  Rfe8 {[%clk 0:01:54]} 20. Rfe1 {[%clk 0:01:43]}  Kf8 {[%clk 0:01:48]} 21. Bf1 {[%clk 0:01:37]}  Be4 {[%clk 0:01:27]} 22. Bxb5 {[%clk 0:01:29]}  Bxf3 {[%clk 0:01:23]} 23. Bf1 {[%clk 0:01:26]}  Re4 {[%clk 0:01:04]} 24. Bd3 {[%clk 0:01:25]}  Rxe1+ {[%clk 0:00:52]} 25. Rxe1 {[%clk 0:01:26]}  Re8 {[%clk 0:00:52]} 26. Re3 {[%clk 0:01:18]}  Bg4 {[%clk 0:00:45]} 27. Kg2 {[%clk 0:01:11]}  Bh6 {[%clk 0:00:42]} 28. Rxe8+ {[%clk 0:01:09]}  Kxe8 {[%clk 0:00:43]} 29. f4 {[%clk 0:00:54]}  Ke7 {[%clk 0:00:40]} 30. h3 {[%clk 0:00:54]}  Be6 {[%clk 0:00:37]} 31. Kf3 {[%clk 0:00:53]}  Bxh3 {[%clk 0:00:29]} 32. g4 {[%clk 0:00:54]}  f5 {[%clk 0:00:28]} 33. g5 {[%clk 0:00:48]}  Bg4+ {[%clk 0:00:28]} 34. Kg3 {[%clk 0:00:47]}  Bg7 {[%clk 0:00:29]} 35. Kf2 {[%clk 0:00:40]}  h6 {[%clk 0:00:24]} 36. gxh6 {[%clk 0:00:41]}  Bxh6 {[%clk 0:00:25]} 37. Bd2 {[%clk 0:00:39]}  Kf6 {[%clk 0:00:23]} 38. Kg3 {[%clk 0:00:32]}  Bg7 {[%clk 0:00:23]} 39. Be3 {[%clk 0:00:31]}  Bf8 {[%clk 0:00:21]} 40. Bf2 {[%clk 0:00:30]}  Be7 {[%clk 0:00:21]} 41. Kg2 {[%clk 0:00:30]}  Kf7 {[%clk 0:00:21]} 42. Kg3 {[%clk 0:00:29]}  Bf6 {[%clk 0:00:22]} 43. Be3 {[%clk 0:00:29]}  Kg7 {[%clk 0:00:22]} 44. Bf1 {[%clk 0:00:28]}  Kh6 {[%clk 0:00:22]} 45. Bd3 {[%clk 0:00:27]}  Kh5 {[%clk 0:00:22]} 46. Bc2 {[%clk 0:00:24]}  Bh4+ {[%clk 0:00:21]} 47. Kg2 {[%clk 0:00:23]}  g5 {[%clk 0:00:21]} 48. Bd3 {[%clk 0:00:21]}  Bd1 {[%clk 0:00:17]} 49. Bxf5 {[%clk 0:00:18]}  gxf4 {[%clk 0:00:07]} 50. Bxf4 {[%clk 0:00:18]}  Bg4 {[%clk 0:00:06]} 51. Bd3 {[%clk 0:00:16]}  Bf6 {[%clk 0:00:06]} 52. Be3 {[%clk 0:00:16]}  Kh4 {[%clk 0:00:05]} 53. Bf4 {[%clk 0:00:15]}  Kh5 {[%clk 0:00:05]} 54. Be3 {[%clk 0:00:15]}  Kh4 {[%clk 0:00:05]} 55. Bf2+ {[%clk 0:00:15]}  Kh5 {[%clk 0:00:05]} 56. Kg3 {[%clk 0:00:16]}  Bh4+ {[%clk 0:00:04]} 57. Kg2 {[%clk 0:00:16]}  Bf6 {[%clk 0:00:04]} 58. Bh7 {[%clk 0:00:15]}  Bg5 {[%clk 0:00:03]} 59. Bc2 {[%clk 0:00:14]}  Bd2 {[%clk 0:00:03]} 60. b5 {[%clk 0:00:12]}  axb5 {[%clk 0:00:03]} 61. Bd3 {[%clk 0:00:12]}  Bc1 {[%clk 0:00:03]} 62. b3 {[%clk 0:00:11]}  Bd1 {[%clk 0:00:03]} 63. b4 {[%clk 0:00:11]}  Bd2 {[%clk 0:00:04]} 64. Bf5 {[%clk 0:00:11]}  Bxb4 {[%clk 0:00:04]} 65. Bc8 {[%clk 0:00:12]}  Bb3 {[%clk 0:00:04]} 66. Bxb7 {[%clk 0:00:12]}  Bc4 {[%clk 0:00:05]} 67. Bxc6 {[%clk 0:00:13]}  Bc3 {[%clk 0:00:05]} 68. Be8+ {[%clk 0:00:13]}  Kg5 {[%clk 0:00:05]} 69. c6 {[%clk 0:00:14]}  b4 {[%clk 0:00:05]} 70. c7 {[%clk 0:00:15]}  Ba6 {[%clk 0:00:05]} 71. Bc6 {[%clk 0:00:14]}  b3 {[%clk 0:00:05]} 72. Bxd5 {[%clk 0:00:15]}  Bc8 {[%clk 0:00:06]} 73. Bxb3 {[%clk 0:00:15]}  Kf5 {[%clk 0:00:05]} 74. Bc4 {[%clk 0:00:14]}  Ke4 {[%clk 0:00:05]} 75. d5 {[%clk 0:00:15]}  Be5 {[%clk 0:00:05]} 76. Bg3 {[%clk 0:00:14]}  Bd4 {[%clk 0:00:04]} 77. d6 {[%clk 0:00:14]}  Bc5 {[%clk 0:00:03]} 78. Bb5 {[%clk 0:00:14]}  Kd5 {[%clk 0:00:03]} 79. d7 {[%clk 0:00:14]}  Bxd7 {[%clk 0:00:04]} 80. Bxd7 {[%clk 0:00:15]}  Bd6 {[%clk 0:00:02]} 81. c8=Q {[%clk 0:00:16]} 1-0


[Site "https://www.chess.com"]

[Event "Titled Tuesday Blitz April 26 Late 2022"]
[White "Mardov, Dimitar"]
[Black "Sevian, Samuel"]
[WhiteFideId "30919495"]
[BlackFideId "2040506"]
[WhiteElo "2185"]
[BlackElo "2698"]
[Result "0-1"]
[Round "08"]
[TimeControl "180+1"]
[Date "2022.04.26"]
[WhiteClock "0:00:02"]
[BlackClock "0:00:06"]

1. e4 {[%clk 0:03:00]}  c5 {[%clk 0:02:58]} 2. Nf3 {[%clk 0:02:53]}  e6 {[%clk 0:02:58]} 3. d4 {[%clk 0:02:53]}  cxd4 {[%clk 0:02:59]} 4. Nxd4 {[%clk 0:02:54]}  a6 {[%clk 0:02:59]} 5. Bd3 {[%clk 0:02:54]}  Bc5 {[%clk 0:02:58]} 6. Nb3 {[%clk 0:02:53]}  Ba7 {[%clk 0:02:59]} 7. O-O {[%clk 0:02:53]}  d6 {[%clk 0:02:56]} 8. Qg4 {[%clk 0:02:50]}  Nf6 {[%clk 0:02:56]} 9. Qxg7 {[%clk 0:02:38]}  Rg8 {[%clk 0:02:56]} 10. Qh6 {[%clk 0:02:38]}  Nbd7 {[%clk 0:02:56]} 11. Nc3 {[%clk 0:02:28]}  b5 {[%clk 0:02:53]} 12. Bg5 {[%clk 0:02:20]}  Rg6 {[%clk 0:02:48]} 13. Qh4 {[%clk 0:02:19]}  h6 {[%clk 0:02:47]} 14. Bxh6 {[%clk 0:02:09]}  Ne5 {[%clk 0:02:39]} 15. Bg5 {[%clk 0:01:55]}  Bb7 {[%clk 0:02:35]} 16. Kh1 {[%clk 0:01:46]}  b4 {[%clk 0:00:49]} 17. Ne2 {[%clk 0:01:34]}  Rxg5 {[%clk 0:00:48]} 18. Qxg5 {[%clk 0:01:34]}  Nxe4 {[%clk 0:00:49]} 19. Qxd8+ {[%clk 0:01:32]}  Rxd8 {[%clk 0:00:48]} 20. Bxe4 {[%clk 0:01:18]}  Bxe4 {[%clk 0:00:49]} 21. Ned4 {[%clk 0:01:14]}  Bd5 {[%clk 0:00:45]} 22. Rfd1 {[%clk 0:01:03]}  Kd7 {[%clk 0:00:45]} 23. f3 {[%clk 0:01:01]}  Nc4 {[%clk 0:00:43]} 24. Rab1 {[%clk 0:01:00]}  Rg8 {[%clk 0:00:41]} 25. Re1 {[%clk 0:00:46]}  a5 {[%clk 0:00:41]} 26. a4 {[%clk 0:00:41]}  bxa3 {[%clk 0:00:40]} 27. bxa3 {[%clk 0:00:42]}  a4 {[%clk 0:00:40]} 28. Nb5 {[%clk 0:00:39]}  axb3 {[%clk 0:00:15]} 29. cxb3 {[%clk 0:00:40]}  Nd2 {[%clk 0:00:15]} 30. Rb2 {[%clk 0:00:36]}  Nxf3 {[%clk 0:00:14]} 31. Rf1 {[%clk 0:00:35]}  Bd4 {[%clk 0:00:11]} 32. Rc2 {[%clk 0:00:26]}  Bc6 {[%clk 0:00:12]} 33. Rxf3 {[%clk 0:00:15]}  Bxb5 {[%clk 0:00:10]} 34. Rxf7+ {[%clk 0:00:16]}  Kd8 {[%clk 0:00:10]} 35. Rb7 {[%clk 0:00:15]}  Rg5 {[%clk 0:00:09]} 36. h4 {[%clk 0:00:11]}  Rh5 {[%clk 0:00:08]} 37. g3 {[%clk 0:00:09]}  Bd3 {[%clk 0:00:08]} 38. Rb8+ {[%clk 0:00:07]}  Ke7 {[%clk 0:00:08]} 39. Rd2 {[%clk 0:00:07]}  Be4+ {[%clk 0:00:08]} 40. Kh2 {[%clk 0:00:07]}  e5 {[%clk 0:00:08]} 41. a4 {[%clk 0:00:06]}  Rf5 {[%clk 0:00:08]} 42. Re2 {[%clk 0:00:02]}  Bd5 {[%clk 0:00:08]} 43. Rb4 {[%clk 0:00:01]}  Rf1 {[%clk 0:00:07]} 44. Kh3 {[%clk 0:00:01]}  Bf3 {[%clk 0:00:06]} 45. Rh2 {[%clk 0:00:01]}  Bc5 {[%clk 0:00:06]} 46. Rb8 {[%clk 0:00:01]}  e4 {[%clk 0:00:06]} 47. Rh8 {[%clk 0:00:01]}  e3 {[%clk 0:00:06]} 48. a5 {[%clk 0:00:02]}  e2 {[%clk 0:00:06]} 0-1


[Site "https://www.chess.com"]

[Event "Titled Tuesday Blitz April 26 Late 2022"]
[White "Mayaud, Raphael"]
[Black "Martinez Reyes, Pedro Ramon"]
[WhiteFideId "627151"]
[BlackFideId "3901807"]
[WhiteElo "2191"]
[BlackElo "2410"]
[Result "0-1"]
[Round "08"]
[TimeControl "180+1"]
[Date "2022.04.26"]
[WhiteClock "0:00:03"]
[BlackClock "0:01:41"]

1. d4 {[%clk 0:03:00]}  b6 {[%clk 0:02:55]} 2. e4 {[%clk 0:03:00]}  Bb7 {[%clk 0:02:55]} 3. Bd3 {[%clk 0:03:00]}  Nc6 {[%clk 0:02:47]} 4. c3 {[%clk 0:02:59]}  e5 {[%clk 0:02:47]} 5. d5 {[%clk 0:02:55]}  Nce7 {[%clk 0:02:48]} 6. c4 {[%clk 0:02:49]}  Ng6 {[%clk 0:02:47]} 7. Ne2 {[%clk 0:02:46]}  Nf6 {[%clk 0:02:47]} 8. O-O {[%clk 0:02:44]}  h5 {[%clk 0:02:47]} 9. f4 {[%clk 0:02:40]}  Bc5+ {[%clk 0:02:45]} 10. Kh1 {[%clk 0:02:39]}  Ng4 {[%clk 0:02:45]} 11. Qe1 {[%clk 0:02:34]}  exf4 {[%clk 0:02:42]} 12. Nxf4 {[%clk 0:02:29]}  N6e5 {[%clk 0:02:42]} 13. Be2 {[%clk 0:02:24]}  Ne3 {[%clk 0:02:37]} 14. Bxe3 {[%clk 0:02:22]}  Bxe3 {[%clk 0:02:38]} 15. Nc3 {[%clk 0:02:17]}  Qg5 {[%clk 0:02:32]} 16. Nh3 {[%clk 0:02:05]}  Qh6 {[%clk 0:02:32]} 17. Qg3 {[%clk 0:01:59]}  f6 {[%clk 0:02:27]} 18. a4 {[%clk 0:01:33]}  a5 {[%clk 0:02:26]} 19. Nb5 {[%clk 0:01:30]}  O-O-O {[%clk 0:02:26]} 20. b4 {[%clk 0:01:13]}  Bd2 {[%clk 0:02:26]} 21. bxa5 {[%clk 0:01:11]}  Bxa5 {[%clk 0:02:27]} 22. c5 {[%clk 0:01:10]}  bxc5 {[%clk 0:02:25]} 23. Rab1 {[%clk 0:01:07]}  Qd2 {[%clk 0:02:24]} 24. Na7+ {[%clk 0:00:58]}  Kb8 {[%clk 0:02:21]} 25. Qb3 {[%clk 0:00:51]}  Bb4 {[%clk 0:02:21]} 26. Rb2 {[%clk 0:00:36]}  Qc3 {[%clk 0:02:17]} 27. Qxc3 {[%clk 0:00:36]}  Bxc3 {[%clk 0:02:18]} 28. Rb3 {[%clk 0:00:37]}  Bb4 {[%clk 0:02:18]} 29. Nb5 {[%clk 0:00:36]}  c6 {[%clk 0:02:17]} 30. Nd6 {[%clk 0:00:34]}  cxd5 {[%clk 0:02:14]} 31. Nxb7 {[%clk 0:00:35]}  Kxb7 {[%clk 0:02:14]} 32. exd5 {[%clk 0:00:35]}  d6 {[%clk 0:02:12]} 33. Nf4 {[%clk 0:00:34]}  Kb6 {[%clk 0:02:11]} 34. Rfb1 {[%clk 0:00:32]}  Ra8 {[%clk 0:02:11]} 35. Bb5 {[%clk 0:00:27]}  h4 {[%clk 0:02:10]} 36. Rc1 {[%clk 0:00:24]}  Ra7 {[%clk 0:02:10]} 37. Ne6 {[%clk 0:00:21]}  Rh5 {[%clk 0:02:09]} 38. h3 {[%clk 0:00:17]}  Rf5 {[%clk 0:02:06]} 39. Kg1 {[%clk 0:00:17]}  Nf7 {[%clk 0:02:01]} 40. Rxb4 {[%clk 0:00:17]}  cxb4 {[%clk 0:01:59]} 41. Rc6+ {[%clk 0:00:17]}  Ka5 {[%clk 0:01:59]} 42. Nd4 {[%clk 0:00:14]}  b3 {[%clk 0:01:59]} 43. Rc4 {[%clk 0:00:08]}  Ne5 {[%clk 0:01:53]} 44. Nxb3+ {[%clk 0:00:06]}  Kb6 {[%clk 0:01:52]} 45. Rc2 {[%clk 0:00:05]}  Rf4 {[%clk 0:01:51]} 46. Nd2 {[%clk 0:00:05]}  Rd4 {[%clk 0:01:49]} 47. Nf3 {[%clk 0:00:05]}  Nxf3+ {[%clk 0:01:49]} 48. gxf3 {[%clk 0:00:05]}  Rxd5 {[%clk 0:01:50]} 49. Rc6+ {[%clk 0:00:05]}  Ka5 {[%clk 0:01:50]} 50. Rc4 {[%clk 0:00:04]}  Rg5+ {[%clk 0:01:48]} 51. Kf2 {[%clk 0:00:04]}  Rc5 {[%clk 0:01:44]} 52. Rxh4 {[%clk 0:00:04]}  d5 {[%clk 0:01:45]} 53. Rg4 {[%clk 0:00:03]}  Re7 {[%clk 0:01:43]} 54. h4 {[%clk 0:00:03]}  Rc2+ {[%clk 0:01:43]} 55. Kg3 {[%clk 0:00:03]}  Rd2 {[%clk 0:01:43]} 56. h5 {[%clk 0:00:03]}  d4 {[%clk 0:01:43]} 57. h6 {[%clk 0:00:03]}  gxh6 {[%clk 0:01:44]} 58. Rg6 {[%clk 0:00:03]}  Rd1 {[%clk 0:01:42]} 59. Rxf6 {[%clk 0:00:03]}  d3 {[%clk 0:01:43]} 60. Ra6+ {[%clk 0:00:03]}  Kb4 {[%clk 0:01:43]} 61. Rd6 {[%clk 0:00:03]}  d2 {[%clk 0:01:43]} 62. Be2 {[%clk 0:00:03]}  Rxe2 {[%clk 0:01:41]} 0-1


[Site "https://www.chess.com"]

[Event "Titled Tuesday Blitz April 26 Late 2022"]
[White "Mikhalsky, Vladimir"]
[Black "Melikhov, Evgeny V."]
[WhiteFideId "14144352"]
[BlackFideId "4122046"]
[WhiteElo "2301"]
[BlackElo "1931"]
[Result "0-1"]
[Round "08"]
[TimeControl "180+1"]
[Date "2022.04.26"]
[WhiteClock "0:00:52"]
[BlackClock "0:00:40"]

1. e4 {[%clk 0:03:00]}  e5 {[%clk 0:02:59]} 2. Nf3 {[%clk 0:03:00]}  Nc6 {[%clk 0:02:59]} 3. Bb5 {[%clk 0:02:59]}  a6 {[%clk 0:02:59]} 4. Ba4 {[%clk 0:02:58]}  Nf6 {[%clk 0:02:59]} 5. d3 {[%clk 0:02:57]}  b5 {[%clk 0:02:58]} 6. Bb3 {[%clk 0:02:57]}  Be7 {[%clk 0:02:59]} 7. a4 {[%clk 0:02:56]}  Bb7 {[%clk 0:02:53]} 8. O-O {[%clk 0:02:52]}  O-O {[%clk 0:02:50]} 9. Nc3 {[%clk 0:02:48]}  b4 {[%clk 0:02:39]} 10. Nd5 {[%clk 0:02:47]}  d6 {[%clk 0:02:31]} 11. a5 {[%clk 0:02:44]}  Nxd5 {[%clk 0:02:28]} 12. Bxd5 {[%clk 0:02:43]}  Qd7 {[%clk 0:02:23]} 13. Bd2 {[%clk 0:02:36]}  Rab8 {[%clk 0:02:22]} 14. Qe1 {[%clk 0:02:31]}  Nd4 {[%clk 0:02:16]} 15. Nxd4 {[%clk 0:02:26]}  Bxd5 {[%clk 0:02:13]} 16. Nf5 {[%clk 0:02:09]}  Be6 {[%clk 0:02:05]} 17. Nxe7+ {[%clk 0:02:07]}  Qxe7 {[%clk 0:02:05]} 18. Bxb4 {[%clk 0:02:07]}  c5 {[%clk 0:02:04]} 19. Bc3 {[%clk 0:02:07]}  Qg5 {[%clk 0:02:00]} 20. Qe3 {[%clk 0:02:03]}  Qxe3 {[%clk 0:01:48]} 21. fxe3 {[%clk 0:02:03]}  f6 {[%clk 0:01:48]} 22. b3 {[%clk 0:02:02]}  Rfc8 {[%clk 0:01:38]} 23. h3 {[%clk 0:02:00]}  Kf7 {[%clk 0:01:36]} 24. Kh2 {[%clk 0:01:59]}  Ke7 {[%clk 0:01:36]} 25. g4 {[%clk 0:01:59]}  h5 {[%clk 0:01:33]} 26. Kg3 {[%clk 0:01:47]}  Rh8 {[%clk 0:01:32]} 27. Rh1 {[%clk 0:01:44]}  h4+ {[%clk 0:01:29]} 28. Kg2 {[%clk 0:01:43]}  g5 {[%clk 0:01:26]} 29. d4 {[%clk 0:01:38]}  cxd4 {[%clk 0:01:24]} 30. exd4 {[%clk 0:01:37]}  Rhc8 {[%clk 0:01:23]} 31. Be1 {[%clk 0:01:11]}  Rxc2+ {[%clk 0:01:22]} 32. Bf2 {[%clk 0:01:11]}  Rxb3 {[%clk 0:01:21]} 33. Rhc1 {[%clk 0:01:07]}  Rcb2 {[%clk 0:00:56]} 34. Rc7+ {[%clk 0:01:01]}  Bd7 {[%clk 0:00:56]} 35. dxe5 {[%clk 0:01:00]}  Rg3+ {[%clk 0:00:42]} 36. Kf1 {[%clk 0:00:52]}  Rf3 {[%clk 0:00:41]} 37. exd6+ {[%clk 0:00:52]}  Kxd6 {[%clk 0:00:40]} 0-1


[Site "https://www.chess.com"]

[Event "Titled Tuesday Blitz April 26 Late 2022"]
[White "Mirza, Diana"]
[Black "Akrakan"]
[WhiteFideId "2503999"]
[WhiteElo "1813"]
[BlackElo "2105"]
[Result "1-0"]
[Round "08"]
[TimeControl "180+1"]
[Date "2022.04.26"]
[WhiteClock "0:00:05"]
[BlackClock "0:00:17"]

1. b4 {[%clk 0:03:00]}  d5 {[%clk 0:02:57]} 2. Bb2 {[%clk 0:03:00]}  Nf6 {[%clk 0:02:57]} 3. e3 {[%clk 0:03:00]}  Bf5 {[%clk 0:02:57]} 4. Nf3 {[%clk 0:02:57]}  e6 {[%clk 0:02:57]} 5. b5 {[%clk 0:02:56]}  c5 {[%clk 0:02:57]} 6. a4 {[%clk 0:02:55]}  Bd6 {[%clk 0:02:55]} 7. c4 {[%clk 0:02:54]}  O-O {[%clk 0:02:54]} 8. cxd5 {[%clk 0:02:54]}  exd5 {[%clk 0:02:53]} 9. Be2 {[%clk 0:02:52]}  Nbd7 {[%clk 0:02:53]} 10. Nc3 {[%clk 0:02:51]}  Re8 {[%clk 0:02:38]} 11. O-O {[%clk 0:02:50]}  h6 {[%clk 0:02:37]} 12. Qb3 {[%clk 0:02:47]}  Be6 {[%clk 0:02:33]} 13. Qc2 {[%clk 0:02:43]}  Rc8 {[%clk 0:02:33]} 14. d3 {[%clk 0:02:38]}  Qc7 {[%clk 0:02:25]} 15. h3 {[%clk 0:02:28]}  Ne5 {[%clk 0:02:20]} 16. Nd1 {[%clk 0:02:19]}  Ng6 {[%clk 0:02:10]} 17. Bxf6 {[%clk 0:02:17]}  gxf6 {[%clk 0:02:10]} 18. Qb2 {[%clk 0:02:16]}  Be5 {[%clk 0:02:07]} 19. Nxe5 {[%clk 0:02:16]}  fxe5 {[%clk 0:02:07]} 20. Rc1 {[%clk 0:02:14]}  Qd6 {[%clk 0:02:02]} 21. Nc3 {[%clk 0:02:02]}  f5 {[%clk 0:01:58]} 22. Bh5 {[%clk 0:01:57]}  Kh7 {[%clk 0:01:57]} 23. b6 {[%clk 0:01:54]}  a6 {[%clk 0:01:55]} 24. a5 {[%clk 0:01:52]}  Rg8 {[%clk 0:01:55]} 25. Kh1 {[%clk 0:01:50]}  f4 {[%clk 0:01:49]} 26. Bxg6+ {[%clk 0:01:43]}  Rxg6 {[%clk 0:01:49]} 27. exf4 {[%clk 0:01:43]}  exf4 {[%clk 0:01:50]} 28. Rg1 {[%clk 0:01:22]}  Qe5 {[%clk 0:01:25]} 29. Qe2 {[%clk 0:01:11]}  Qf5 {[%clk 0:01:19]} 30. Qf3 {[%clk 0:01:00]}  Rcg8 {[%clk 0:00:53]} 31. Ne2 {[%clk 0:00:58]}  d4 {[%clk 0:00:50]} 32. Nxf4 {[%clk 0:00:58]}  Rf6 {[%clk 0:00:43]} 33. Qe4 {[%clk 0:00:55]}  Qxe4 {[%clk 0:00:41]} 34. dxe4 {[%clk 0:00:55]}  Rxf4 {[%clk 0:00:42]} 35. Rxc5 {[%clk 0:00:45]}  Rg7 {[%clk 0:00:39]} 36. f3 {[%clk 0:00:39]}  Rd7 {[%clk 0:00:33]} 37. Rd1 {[%clk 0:00:34]}  Rf8 {[%clk 0:00:30]} 38. Kg1 {[%clk 0:00:16]}  Rfd8 {[%clk 0:00:30]} 39. Kf2 {[%clk 0:00:16]}  Kg6 {[%clk 0:00:30]} 40. g4 {[%clk 0:00:15]}  Bb3 {[%clk 0:00:28]} 41. Rb1 {[%clk 0:00:14]}  Ba4 {[%clk 0:00:28]} 42. Rb4 {[%clk 0:00:14]}  Bb5 {[%clk 0:00:27]} 43. h4 {[%clk 0:00:13]}  d3 {[%clk 0:00:27]} 44. h5+ {[%clk 0:00:13]}  Kg7 {[%clk 0:00:27]} 45. Rc7 {[%clk 0:00:09]}  d2 {[%clk 0:00:26]} 46. Rxd7+ {[%clk 0:00:06]}  Rxd7 {[%clk 0:00:25]} 47. Rb1 {[%clk 0:00:06]}  d1=Q {[%clk 0:00:26]} 48. Rxd1 {[%clk 0:00:05]}  Rxd1 {[%clk 0:00:25]} 49. Ke3 {[%clk 0:00:06]}  Re1+ {[%clk 0:00:25]} 50. Kf4 {[%clk 0:00:07]}  Ra1 {[%clk 0:00:25]} 51. Ke5 {[%clk 0:00:06]}  Rxa5 {[%clk 0:00:26]} 52. f4 {[%clk 0:00:07]}  Bc6+ {[%clk 0:00:26]} 53. Ke6 {[%clk 0:00:07]}  Rb5 {[%clk 0:00:25]} 54. e5 {[%clk 0:00:07]}  Rxb6 {[%clk 0:00:25]} 55. f5 {[%clk 0:00:07]}  Be4+ {[%clk 0:00:25]} 56. Ke7 {[%clk 0:00:07]}  a5 {[%clk 0:00:25]} 57. f6+ {[%clk 0:00:07]}  Rxf6 {[%clk 0:00:26]} 58. exf6+ {[%clk 0:00:07]}  Kh7 {[%clk 0:00:23]} 59. f7 {[%clk 0:00:07]}  a4 {[%clk 0:00:21]} 60. f8=Q {[%clk 0:00:07]}  a3 {[%clk 0:00:20]} 61. Qf7+ {[%clk 0:00:08]}  Kh8 {[%clk 0:00:20]} 62. Qf6+ {[%clk 0:00:07]}  Kg8 {[%clk 0:00:20]} 63. Qxh6 {[%clk 0:00:06]}  a2 {[%clk 0:00:18]} 64. Qe6+ {[%clk 0:00:05]}  Kh8 {[%clk 0:00:18]} 65. Qxa2 {[%clk 0:00:05]}  Bc6 {[%clk 0:00:17]} 66. Qb2+ {[%clk 0:00:05]}  Kg8 {[%clk 0:00:17]} 67. g5 {[%clk 0:00:05]}  b5 {[%clk 0:00:17]} 68. h6 {[%clk 0:00:05]}  Be4 {[%clk 0:00:17]} 69. Qg7# {[%clk 0:00:05]} 1-0


[Site "https://www.chess.com"]